[Event "Asian Amateur-ch Open 2022"]
[Site "Muscat"]
[Date "2022.10.02"]
[Round "5.8"]
[White "Reyes, Danilo G."]
[Black "Rafee, Mohd Hayel"]
[Result "1/2-1/2"]
[ECO "A05"]
[WhiteElo "1584"]
[BlackElo "1941"]
[Annotator "TA"]
[PlyCount "168"]
[EventDate "2022.09.29"]
[EventType "swiss"]
[SourceTitle "playchess.com"]
[Source "ChessBase"]
[SourceQuality "1"]
[TimeControl "5400+30"]

{[%evp 17,168,0,0,-26,-28,-27,-26,-68,19,0,0,0,0,-10,16,0,0,0,0,0,36,15,27,0,0,0,48,37,51,44,51,39,51,46,44,31,25,-171,-172,-175,-63,-179,-178,-170,-158,-157,-107,-158,-110,-125,0,0,-27,-35,0,0,25,25,117,55,47,-59,-53,-41,-41,-31,-12,-26,-9,-43,-9,-7,0,-16,-16,-16,-14,-14,-11,-11,-11,-16,-12,-17,-16,-22,-12,-15,-12,-12,0,-12,0,0,0,0,8,8,8,0,0,0,0,0,0,0,0,0,0,-15,0,0,213,219,205,149,253,197,211,115,651,132,299,275,383,80,80,8,8,12,79,12,19,0,8,0,390,0,0,0,0,0,0,0,0,0,0,0,0,0,0,0,0]} 1. Nf3 {[%emt 0:00:13]} c5 {[%emt 0:00:20]} 2. g3 {[%emt 0:00:07]} Nc6 {[%emt 0:00:05]} 3. Bg2 {[%emt 0:00:06]} g6 {[%emt 0:00:12]} 4. e4 {[%emt 0:00:07]} Bg7 {[%emt 0:00:04]} 5. d3 {[%emt 0:00:10]} d6 {[%emt 0:00:04]} 6. O-O {[%emt 0:00:12]} Nf6 {[%emt 0:00:04]} 7. Re1 {[%emt 0:00:13]} O-O {[%emt 0:02:55]} 8. c3 {[%emt 0:00:14]} Rb8 {[%emt 0:00:28]} 9. Nbd2 {[%emt 0:09:51]} b5 {[%emt 0:01:57][%cal Bb7b5,Bb5b4][%mdl 32]} 10. Qc2 {[%emt 0:01:22] A05: Réti Opening: 1 Nf3 Nf6.} b4 {[%emt 0:00:13]} 11. Nc4 {[%emt 0:03:58]} Nd7 {[%emt 0:12:29] [#] Prevents e5.} 12. a3 $146 {[%emt 0:10:02] Black has an edge.} ({Predecessor:} 12. Bd2 Ba6 13. Ne3 Nde5 14. Nxe5 Nxe5 15. c4 Nc6 16. Qa4 Qc8 17. Rab1 Bb7 18. h3 {0-1 (61) Lashkevich,A (1364)-Vasiliev,M (1879) Minsk 2018}) 12... a5 {[%emt 0:15:12]} (12... bxc3 $15 13. bxc3 Ba6) 13. axb4 $11 {[%emt 0:09:48]} axb4 {[%emt 0:00:12]} 14. Bf4 {[%emt 0:00:28]} Qc7 {[%emt 0:16:46]} 15. h4 {[%emt 0:08:42]} e5 {[%emt 0:03:15]} 16. Bd2 {[%emt 0:02:59][%cal Oh4h5]} Nf6 {[%emt 0:00:25]} 17. Bg5 {[%emt 0:03:05]} Be6 {[%emt 0:00:16]} 18. Ne3 {[%emt 0:04:22]} Rb7 {[%emt 0:05:15]} 19. Bxf6 {[%emt 0:06:12]} Bxf6 {[%emt 0:00:28]} 20. Nd5 {[%emt 0:00:47]} Bxd5 {[%emt 0:16:54]} 21. exd5 {[%emt 0:00:07]} Ne7 {[%emt 0:00:03]} (21... Na5 $11 {was preferrable.}) 22. Nd2 $14 {[%emt 0:00:52]} bxc3 {[%emt 0:00:20]} 23. bxc3 {[%emt 0:00:54]} Rfb8 {[%emt 0:00:10]} 24. Nc4 {[%emt 0:00:11]} Bg7 {[%emt 0:03:24]} 25. Ra6 {[%emt 0:01:07]} Nc8 {[%emt 0:04:45]} 26. Rc6 {[%emt 0:03:03]} Qd7 {[%emt 0:01:34]} 27. f4 $2 {[%emt 0:01:53]} (27. Ra1 $11) 27... exf4 $19 {[%emt 0:00:51]} 28. gxf4 {[%emt 0:02:04]} Bf8 {[%emt 0:03:23]} ({Black should play} 28... Ne7 $1 $19 29. f5 (29. Rxd6 Qg4 $17) (29. Nxd6 $2 Rb2 $19) 29... Nxf5) 29. f5 {[%emt 0:17:40]} (29. Qf2 $1 $15) 29... Qxf5 {[%emt 0:02:24]} 30. Rf1 {[%emt 0:05:13]} Qg4 {[%emt 0:01:59]} 31. Qf2 {[%emt 0:00:36]} Qd7 {[%emt 0:01:38]} (31... Bg7 $142 32. Kh2 Re7) 32. Kh2 {[%emt 0:00:13]} ({White should try} 32. Qg3) 32... Qe8 {[%emt 0:01:23]} (32... Nb6 $142 {Threatens to win with ...Nxc4.} 33. Nd2 f5) 33. h5 {[%emt 0:01:56]} Nb6 {[%emt 0:00:20]} (33... Bg7 $1 $17 34. d4 cxd4 35. cxd4 Ra7) 34. Nxd6 $11 {[%emt 0:00:44]} Qe5+ {[%emt 0:04:57]} 35. Qg3 {[%emt 0:00:29] Really sharp!} Qxg3+ {[%emt 0:01:26]} (35... Bxd6 $5 36. Rxd6 Qxh5+ 37. Kg1 Na4 $15) 36. Kxg3 {[%emt 0:00:10]} Rd7 {[%emt 0:00:39]} 37. Ne4 {[%emt 0:02:58] And now Nf6+ would win.} Nxd5 {[%emt 0:01:21]} (37... Rdd8 $1 $11) 38. hxg6 {[%emt 0:02:46] White is more active.} ({Inferior is} 38. Nxc5 Rd6 39. Bxd5 Rxd5 $17) (38. c4 $16 Nb6 39. Nf6+ Kh8 40. Nxd7 Nxd7 41. hxg6 (41. Rxf7 Ne5 $14) 41... hxg6 42. Bd5 (42. Rxf7 Ne5 $16)) 38... hxg6 $14 {[%emt 0:00:43]} 39. Nxc5 {[%emt 0:00:33]} ({White has to play} 39. c4 $14 Nb6 40. Nf6+ Kg7 41. Nxd7 Nxd7 42. Bd5) 39... Bxc5 {[%emt 0:00:16]} 40. Rxc5 {[%emt 0:00:08]} Ne3 {[%emt 0:00:12][%csl LRd3,LRf1]} 41. Rf3 {[%emt 0:01:28]} Nf5+ {[%emt 0:00:47]} 42. Kg4 {[%emt 0:00:57]} Rb2 {[%emt 0:00:13]} 43. Bf1 {[%emt 0:00:38]} Rh2 {[%emt 0:00:24]} 44. Bh3 {[%emt 0:01:45]} Ra7 {[%emt 0:00:54]} 45. Rcxf5 {[%emt 0:00:28]} gxf5+ {[%emt 0:00:09]} 46. Kxf5 $11 {[%emt 0:00:03][%mdl 4096] Endgame KRR-KRB} Kg7 {[%emt 0:00:59]} 47. c4 {[%emt 0:00:15]} Re2 {[%emt 0:00:32]} 48. Rg3+ {[%emt 0:00:14]} Kf8 {[%emt 0:00:02]} 49. Bg2 {[%emt 0:00:02]} Ke7 {[%emt 0:00:41]} 50. Bd5 {[%emt 0:00:03]} Ra6 {[%emt 0:00:11]} 51. Be4 $1 {[%emt 0:00:29]} Ra5+ {[%emt 0:00:59]} 52. Kf4 {[%emt 0:00:18]} Ra1 {[%emt 0:00:39]} 53. Ke5 {[%emt 0:00:21]} Ra5+ {[%emt 0:00:27]} 54. Kd4 {[%emt 0:00:03]} f5 {[%emt 0:00:16]} 55. Bd5 {[%emt 0:00:05]} Kf6 {[%emt 0:00:28]} 56. Rg8 {[%emt 0:00:47] Against Re8} f4 {[%emt 0:00:46]} 57. Rf8+ {[%emt 0:00:17]} Kg5 {[%emt 0:00:06]} 58. Rg8+ {[%emt 0:00:34]} Kh4 {[%emt 0:00:59]} 59. Rh8+ {[%emt 0:00:17]} Kg3 {[%emt 0:00:09]} 60. Rg8+ {[%emt 0:00:37]} Kf2 {[%emt 0:00:36]} 61. Rg2+ {[%emt 0:01:02]} Kf1 {[%emt 0:00:38]} 62. Rg4 {[%emt 0:00:02]} Rf2 {[%emt 0:00:31]} 63. Ke4 {[%emt 0:00:25]} f3 {[%emt 0:00:37]} 64. Ke3 {[%emt 0:00:18]} Ra7 $2 {[%emt 0:00:34]} (64... Ra1 $11) 65. Bxf3 $18 {[%emt 0:00:50]} Rh7 {[%emt 0:00:28]} 66. Be4 {[%emt 0:00:22]} Re2+ {[%emt 0:00:14]} (66... Rh3+ $16 67. Kd4 Ra2) 67. Kd4 {[%emt 0:00:05]} Rd7+ {[%emt 0:00:02] [#]} 68. Bd5 {[%emt 0:00:18]} (68. Kc3 $1 $18) 68... Ke1 $2 {[%emt 0:00:22][%mdl 8192]} (68... Rh2 $16) 69. Rg3 $2 {[%emt 0:00:46]} (69. Re4 $18 {is the precise move to win. Hoping for c5.} Kd1 70. Rxe2 Kxe2 71. c5) 69... Kd2 $2 {[%emt 0:00:21]} (69... Rf2 $16 {keeps fighting.}) 70. c5 {[%emt 0:00:31]} Rh2 {[%emt 0:00:23] aiming for ...Rh4+.} 71. Kc4 $2 {[%emt 0:00:52]} (71. c6 $18 Rh4+ 72. Kc5) 71... Rh5 $16 {[%emt 0:00:44]} 72. Rg2+ {[%emt 0:00:30]} (72. Bf3 $16 Rxc5+ 73. Kxc5 Rxd3 74. Rg2+ Ke1 75. Bd5) 72... Ke3 $11 {[%emt 0:00:01]} 73. Be4 {[%emt 0:00:31]} Kf4 {[%emt 0:01:51] Against Rg3} (73... Ra7 $11 {keeps the balance.}) 74. c6 {[%emt 0:00:46]} (74. Rf2+ $16 Ke5 75. Re2) 74... Ra7 $1 {[%emt 0:00:23]} 75. Rb2 {[%emt 0:01:11]} Raa5 {[%emt 0:00:35] Against Rb5} 76. Rb7 {[%emt 0:00:47]} Ke5 $2 {[%emt 0:00:36][%mdl 8192] [#]} (76... Ke3 $1 $11 {and Black stays safe.}) 77. Rb5+ $2 {[%emt 0:00:31]} (77. c7 $1 $18 {[%cal Rc7c8]} Rh8 78. Rb8) 77... Kd6 {[%emt 0:00:20] The position is equal.} 78. Rxh5 {[%emt 0:01:44]} Rxh5 {[%emt 0:00:02] KR-KB} 79. d4 {[%emt 0:00:32]} Ra5 {[%emt 0:00:02]} 80. d5 {[%emt 0:00:10]} Ra4+ {[%emt 0:00:50]} 81. Kd3 {[%emt 0:00:36]} Rb4 {[%emt 0:00:07]} 82. Ke3 {[%emt 0:00:22]} Ke5 {[%emt 0:00:31]} 83. Bf3 {[%emt 0:00:20]} Rb3+ {[%emt 0:00:09]} 84. Kf2 {[%emt 0:00:04]} Kd6 {[%emt 0:00:05] Quite a comeback for White.  Weighted Error Value: White=0.19 (very precise) /Black=0.20 (precise)} 1/2-1/2

[Event "Asian Amateur-ch Open 2022"]
[Site "Muscat"]
[Date "2022.10.02"]
[Round "5.9"]
[White "Shahali, Milad"]
[Black "Al Amri, Mahad"]
[Result "1/2-1/2"]
[ECO "B33"]
[WhiteElo "1910"]
[BlackElo "1589"]
[Annotator "TA"]
[PlyCount "132"]
[EventDate "2022.09.29"]
[EventType "swiss"]
[SourceTitle "playchess.com"]
[Source "ChessBase"]
[SourceQuality "1"]
[TimeControl "5400+30"]

{[%evp 21,131,21,76,25,93,82,122,115,235,228,252,238,219,215,175,159,509,522,530,0,0,0,85,0,0,0,81,81,676,0,0,0,0,0,0,-489,-483,-441,-430,-384,-56,-181,-179,-262,-155,-141,-136,-136,0,0,0,0,0,0,0,0,0,0,0,-8,0,-8,-8,-603,-569,-448,-184,-260,-8,-8,-8,-8,-8,-8,0,0,0,0,0,0,0,-8,0,0,0,0,0,-29976,-29977,-29977,-29979,-29978,-29976,-29976,-29977,-29977,0,0,0,0,0,0,0,0,0,0,0,0,0,0,0,0]} 1. e4 {[%emt 0:00:30]} c5 {[%emt 0:04:26]} 2. Nf3 {[%emt 0:00:51]} Nc6 {[%emt 0:00:59]} 3. d4 {[%emt 0:00:21]} cxd4 {[%emt 0:00:13]} 4. Nxd4 {[%emt 0:00:05]} e5 {[%emt 0:00:28]} 5. Nb5 {[%emt 0:00:26]} d6 {[%emt 0:00:40]} 6. N1c3 {[%emt 0:00:22]} Nf6 {[%emt 0:00:35]} 7. Bg5 {[%emt 0:00:11]} a6 {[%emt 0:00:37]} 8. Bxf6 {[%emt 0:00:10]} gxf6 {[%emt 0:00:18]} 9. Na3 {[%emt 0:00:05]} f5 {[%emt 0:02:01]} 10. Bd3 {[%emt 0:02:11]} f4 {[%emt 0:01:56]} 11. Nd5 {[%emt 0:02:27]} b5 {[%emt 0:01:06]} (11... Rg8 $11) 12. c3 {[%emt 0:10:23] B33: Sicilian: Pelikan and Sveshnikov Variations.} ({White should play} 12. c4 $16) 12... h5 {[%emt 0:02:52] [#]} (12... Rg8 $11 {remains equal.}) 13. Nc2 $146 {[%emt 0:06:30] White is more active.} ({Predecessor:} 13. h4 Be6 14. Qb3 Bd7 15. Nc2 Na5 16. Qa3 Nc4 17. Bxc4 bxc4 18. Qb4 Rb8 19. Qxc4 Rxb2 20. Nc7+ Ke7 {½-½ (21) Soerens,M (1488)-Hotze,K (1664) Hamburg 2007}) 13... Bg4 {[%emt 0:05:23]} 14. Be2 {[%emt 0:08:39] White is better.} Rg8 {[%emt 0:07:35]} (14... Be6 $16) 15. a4 $18 {[%emt 0:00:59]} Rb8 {[%emt 0:04:04]} 16. axb5 {[%emt 0:02:27]} axb5 {[%emt 0:00:24]} 17. Ra6 {[%emt 0:12:39]} Bd7 {[%emt 0:05:16]} 18. Na3 {[%emt 0:02:00]} Rxg2 $2 {[%emt 0:05:49]} (18... b4 $16 {is tougher.}) 19. Bxb5 {[%emt 0:04:05]} Rxf2 {[%emt 0:15:33][%cal Od8h4] Threatens to win with ...Qh4!} 20. Kxf2 $2 {[%emt 0:30:17]} (20. Qxh5 $18 Rg2 21. Bxc6 Bxc6 22. Rxc6) 20... Qh4+ $11 {[%emt 0:01:04]} 21. Kg1 {[%emt 0:03:06]} Bh3 {[%emt 0:10:26]} (21... Rxb5 $1 $11 {keeps the balance.} 22. Nxb5 Bh3 23. Rxc6 (23. Ra8+ Nd8 $11) 23... Qg5+ 24. Kf2 Qg2+ 25. Ke1 Qxe4+ 26. Kd2 (26. Kf2 $2 Qg2+ 27. Ke1 Qxh1+ 28. Kd2 Qxd5+ 29. Nd4 exd4 $19) 26... Qxd5+ 27. Nd4 exd4 28. Re1+ Kd8) 22. Rxc6 {[%emt 0:01:02]} (22. Bxc6+ $16 Kd8 23. Bb5 Qg5+ 24. Kf2 Qh4+ 25. Ke2 Bg4+ 26. Kd2 Bxd1 27. Rxd1 (27. Kxd1 Qg4+ 28. Kc1 f3 $16)) 22... Qg5+ {[%emt 0:00:23]} 23. Kf2 {[%emt 0:00:03][%cal Rc6c8,Bg1f2,Bf2e1,Be1d2][%mdl 32]} Qg2+ {[%emt 0:01:13]} (23... Qh4+ $2 24. Ke2 Rxb5 25. Nxb5 $18) (23... Rxb5 $1 $11 24. Ke1 (24. Nxb5 Qg2+ 25. Ke1 Qxe4+ 26. Kd2 Qxd5+ 27. Nd4 exd4 $11) (24. Nf6+ Qxf6 25. Nxb5 Qh4+ 26. Ke2 Bg4+ 27. Kd2 Bxd1 $19) 24... Rxd5 25. Qxd5 Qg2) 24. Ke1 $16 {[%emt 0:00:07][%cal Rc6c8]} Rxb5 $4 {[%emt 0:06:44][%mdl 8192]} (24... Qxe4+ $16 25. Qe2 Qxh1+ 26. Qf1 Qxf1+ 27. Bxf1 Be6) 25. Nxb5 $2 {[%emt 0:00:53]} (25. Nf6+ $18 Kd8 26. Rxd6+ Kc8 27. Rd8+ Kb7 28. Nxb5 Qxh1+ 29. Kd2 Qxd1+ 30. Kxd1) 25... Qxe4+ $11 {[%emt 0:00:14]} 26. Kd2 {[%emt 0:04:39]} (26. Kf2 $2 Qg2+ 27. Ke1 Qxh1+ 28. Kd2 Qxd5+ 29. Nd4 exd4 $19) 26... Qxd5+ {[%emt 0:00:19]} 27. Nd4 $1 {[%emt 0:03:14]} exd4 {[%emt 0:01:44]} 28. Qa4 $2 {[%emt 0:00:56][%mdl 8192]} dxc3+ $1 $19 {[%emt 0:02:24]} 29. Kxc3 {[%emt 0:00:01]} Bg7+ {[%emt 0:02:47][%mdl 64] Skewer} 30. Kb4 {[%emt 0:00:04]} Qd2+ {[%emt 0:03:19]} (30... Qxh1 31. Qa8+ Kd7 32. Rxd6+ $3 {[%mdl 512]} (32. Qc8+ Ke7 $17) 32... Kxd6 33. Qxh1 $18) ({Better is} 30... Bd7 $1 $19 {[%cal Rd7c6]} 31. Re1+ Be5 32. Rxe5+ dxe5 33. Rc8+ Ke7) 31. Rc3+ {[%emt 0:03:01]} (31. Kb5 $1 $15) 31... Bd7 {[%emt 0:00:40][%mdl 1024] Black has strong compensation. This bishop pair is nice.} 32. Qc2 {[%emt 0:02:02]} (32. Qa8+ $142 Ke7 33. Qe4+ Kf8 34. Qa8+ Ke7 35. Qe4+ Kd8 36. Qa8+ (36. Re1 Bxc3+ 37. bxc3 Qb2+ 38. Kc4 Qb5+ 39. Kd4 Qc5+ 40. Kd3 Bf5 $19) 36... Ke7) 32... Qd4+ {[%emt 0:01:25]} (32... Qd5 $1 $19 {[%cal Rd5b5] ( -> ...Qb5+)} 33. Rc8+ Ke7 34. Re1+ Be5 35. Rxe5+ Qxe5) 33. Rc4 $17 {[%emt 0:00:34]} Qb6+ {[%emt 0:00:27]} 34. Ka3 {[%emt 0:00:15]} Qa6+ {[%emt 0:01:00]} (34... Ke7 $17 {White must now prevent ...Qa6+.} 35. b3 (35. Re1+ Be5 $17) 35... f3 36. Qe4+ Be5) 35. Ra4 $1 $11 {[%emt 0:01:03]} Qxa4+ {[%emt 0:00:22]} 36. Qxa4 {[%emt 0:00:04]} Bxa4 {[%emt 0:00:07]} 37. Kxa4 {[%emt 0:00:06]} Bxb2 {[%emt 0:00:08][%mdl 4096] Endgame KR-KB} 38. Kb3 {[%emt 0:00:17]} Be5 {[%emt 0:00:27]} 39. Rf1 {[%emt 0:01:36]} Ke7 {[%emt 0:00:12]} 40. Kc4 {[%emt 0:00:25]} Kf6 {[%emt 0:00:09]} 41. Kd3 {[%emt 0:00:38]} Kf5 {[%emt 0:00:11]} 42. Ke2 $2 {[%emt 0:00:38][%mdl 8192]} (42. Rh1 $11) 42... Ke4 $19 {[%emt 0:00:31]} 43. Rf3 {[%emt 0:00:26]} Bd4 {[%emt 0:00:27]} (43... d5 $142 44. Ra3 d4) 44. Rh3 {[%emt 0:00:10]} Be3 $2 {[%emt 0:01:35]} ({Black should try} 44... d5 $19 {...f6 is the strong threat.} 45. Kd2 Be5) 45. Rxh5 $11 {[%emt 0:00:06]} d5 {[%emt 0:00:23][%cal Bd6d5,Bd5d4,Bd4d3,Bd3d2][%mdl 32]} 46. Rh7 {[%emt 0:00:33]} f3+ {[%emt 0:00:56]} 47. Kf1 {[%emt 0:00:15]} f5 {[%emt 0:00:10]} 48. h4 {[%emt 0:01:22] aiming for h5.} d4 {[%emt 0:00:21]} 49. Re7+ {[%emt 0:00:33]} Kf4 {[%emt 0:00:13]} 50. h5 {[%emt 0:01:04] Strongly threatening h6.} Kg5 {[%emt 0:00:12]} 51. Rh7 {[%emt 0:00:14]} d3 {[%emt 0:00:12]} 52. Rd7 {[%emt 0:00:15]} d2 {[%emt 0:00:14]} 53. h6 $1 {[%emt 0:00:40][%mdl 64] Decoy} Kxh6 {[%emt 0:00:25]} 54. Rd6+ $2 {[%emt 0:00:49][%mdl 8192]} (54. Rh7+ $11 Kg5 55. Rg7+ Kf4 56. Rg4+ Ke5 57. Re4+ Kf6 58. Re6+ Kg5 59. Rd6) 54... Kg5 {[%emt 0:00:11]} 55. Rg6+ {[%emt 0:00:14]} Kh5 {[%emt 0:00:56][%cal Rd2d1]} 56. Rd6 {[%emt 0:00:05]} Kg4 {[%emt 0:00:37]} 57. Rd4+ {[%emt 0:00:28] [#]} Kg5 $1 {[%emt 0:01:43]} 58. Rg4+ {[%emt 0:00:20] [#]} Kf6 $2 {[%emt 0:00:14]} (58... Kh5 $1 {mates} 59. Rh4+ Kg6 60. Rg4+ Kh6 61. Rh4+ Kg6 62. Rg4+ Kh6 63. Rh4+ Kg6) 59. Rg6+ $1 {[%emt 0:00:12] The position is equal.} Ke5 {[%emt 0:00:45][%cal Rd2d1]} (59... Kf7 $5 60. Rf6+ $8 Ke8 61. Re6+ Kf7 62. Rf6+ Kg7 63. Rf7+ (63. Rd6 $2 f2 $19) 63... Kg6 64. Rf6+ Kh5 65. Rxf5+ Kh4 $11) 60. Re6+ $1 {[%emt 0:00:06]} Kf4 {[%emt 0:00:47][%cal Rd2d1]} ({Don't go for} 60... Kd5 $2 61. Rd6+ Ke5 62. Rd5+ Kf4 63. Rd4+ Kg5 64. Rd8 $19) 61. Re4+ $1 {[%emt 0:00:17]} Kg3 {[%emt 0:01:16][%cal Rd2d1]} 62. Rg4+ $1 {[%emt 0:00:22]} Kh2 {[%emt 0:04:04][%cal Rd2d1]} 63. Rh4+ {[%emt 0:00:11]} Kg3 {[%emt 0:00:09][%cal Rd2d1]} 64. Rg4+ {[%emt 0:00:08]} Kh3 {[%emt 0:00:09][%cal Rd2d1]} 65. Rh4+ $1 {[%emt 0:00:08]} Kg3 {[%emt 0:00:03]} 66. Rg4+ {[%emt 0:00:06]} fxg4 {[%emt 0:00:02] White happily takes the draw.  Weighted Error Value: White=0.59/Black=0.68} 1/2-1/2

[Event "Asian Amateur-ch Open 2022"]
[Site "Muscat"]
[Date "2022.10.02"]
[Round "5.10"]
[White "Al Jahwari, Adnan Mohammed"]
[Black "Bagheri, Majid"]
[Result "0-1"]
[ECO "C55"]
[WhiteElo "1546"]
[BlackElo "1870"]
[Annotator "NA RC COMBH"]
[PlyCount "108"]
[EventDate "2022.09.29"]
[EventType "swiss"]
[SourceTitle "playchess.com"]
[Source "ChessBase"]
[SourceQuality "1"]
[TimeControl "5400+30"]

1. e4 {[%emt 0:00:08]} e5 {[%emt 0:00:10]} 2. Nf3 {[%emt 0:00:10]} Nc6 {[%emt 0:00:09]} 3. Bc4 {[%emt 0:00:14]} Nf6 {[%emt 0:00:43]} 4. d3 {[%emt 0:00:54]} h6 {[%emt 0:00:32]} 5. a4 {[%emt 0:01:10]} a5 {[%emt 0:00:37]} 6. O-O {[%emt 0:00:26]} g6 {[%emt 0:01:53]} 7. Nc3 {[%emt 0:02:05]} d6 {[%emt 0:01:12]} 8. h3 {[%emt 0:00:15]} Bg7 {[%emt 0:00:11]} 9. Be3 {[%emt 0:02:25]} O-O {[%emt 0:00:15]} 10. Qd2 {[%emt 0:00:28]} Kh7 {[%emt 0:00:09]} 11. Nh2 {[%emt 0:01:19]} Ne7 {[%emt 0:04:53]} 12. f4 {[%emt 1:26:56]} exf4 {[%emt 0:02:37]} 13. Rxf4 {[%emt 0:00:00]} g5 {[%emt 0:02:50]} 14. Rf3 {[%emt 0:00:00]} d5 {[%emt 0:13:51]} 15. exd5 {[%emt 0:00:00]} Nfxd5 {[%emt 0:02:38]} 16. Nxd5 {[%emt 0:00:00]} Nxd5 {[%emt 0:00:10]} 17. c3 {[%emt 0:00:00]} Nxe3 {[%emt 0:01:39]} 18. Qxe3 {[%emt 0:00:00]} f5 {[%emt 0:00:53]} 19. d4 {[%emt 0:00:00]} Re8 {[%emt 0:01:07]} 20. Qd3 {[%emt 0:00:00]} Kh8 {[%emt 0:00:27]} 21. Bb3 {[%emt 0:00:00]} Qe7 {[%emt 0:01:18]} 22. Kf2 {[%emt 0:00:00]} Ra6 {[%emt 0:02:08]} 23. Nf1 {[%emt 0:00:00]} f4 {[%emt 0:11:37]} 24. Bc2 {[%emt 0:00:00]} Bf6 {[%emt 0:00:29]} 25. Nd2 {[%emt 0:00:00]} Re6 {[%emt 0:02:35]} 26. Kg1 {[%emt 0:00:00]} Re3 {[%emt 0:03:03]} 27. Rxe3 {[%emt 0:00:00]} Qxe3+ {[%emt 0:00:15]} 28. Qxe3 {[%emt 0:00:00]} Rxe3 {[%emt 0:00:17]} 29. Kf2 {[%emt 0:00:00]} g4 {[%emt 0:02:04]} 30. Nc4 {[%emt 0:00:00]} Bh4+ {[%emt 0:11:46]} 31. Kf1 {[%emt 0:00:00]} Re8 {[%emt 0:08:45]} 32. hxg4 {[%emt 0:00:00]} Bxg4 {[%emt 0:09:57]} 33. Ne5 {[%emt 0:00:00]} Bh5 {[%emt 0:00:19]} 34. Ng6+ {[%emt 0:00:00]} Bxg6 {[%emt 0:00:21]} 35. Bxg6 {[%emt 0:00:00]} Re6 {[%emt 0:00:20]} 36. Bf5 {[%emt 0:00:00]} Re3 {[%emt 0:00:44]} 37. Bg4 {[%emt 0:00:00]} Kg7 {[%emt 0:00:29]} 38. Bf3 {[%emt 0:00:00]} b6 {[%emt 0:00:16]} 39. Rc1 {[%emt 0:00:00]} Kf7 {[%emt 0:00:49]} 40. b4 {[%emt 0:00:00]} Ke6 {[%emt 0:02:50]} 41. bxa5 {[%emt 0:00:00]} bxa5 {[%emt 0:00:02]} 42. c4 {[%emt 0:00:00]} Ra3 {[%emt 0:02:08]} 43. Bd1 {[%emt 0:00:00]} Re3 {[%emt 0:00:44]} 44. Bf3 {[%emt 0:00:00]} Ra3 {[%emt 0:00:18]} 45. Bd1 {[%emt 0:00:00]} Rd3 $11 {[%emt 0:00:59]} (45... Bf6 $15 {deserves consideration.}) 46. d5+ {[%emt 0:00:00]} Kd6 {[%emt 0:00:40]} 47. Ke2 {[%emt 0:00:00]} Re3+ {[%emt 0:00:26]} 48. Kd2 {[%emt 0:00:00]} Be1+ {[%emt 0:00:26]} 49. Kc2 {[%emt 0:00:00]} Kc5 {[%emt 0:00:12]} 50. Kb2 {[%emt 0:00:00]} Bh4 {[%emt 0:01:33]} 51. Bg4 {[%emt 0:00:00]} Bf6+ {[%emt 0:00:13]} 52. Ka2 {[%emt 0:00:57]} Rd3 {[%emt 0:00:37]} 53. Rc2 {[%emt 0:00:53]} Kb4 {[%emt 0:01:04]} 54. Rf2 {[%emt 0:03:05]} Ra3+ {[%emt 0:00:14]} 0-1

[Event "Asian Amateur-ch Open 2022"]
[Site "Muscat"]
[Date "2022.10.02"]
[Round "5.11"]
[White "Gabdushev, Arman"]
[Black "UMER S.M"]
[Result "0-1"]
[ECO "A48"]
[WhiteElo "1827"]
[BlackElo "1631"]
[Annotator "NA RC COMBH"]
[PlyCount "76"]
[EventDate "2022.09.29"]
[EventType "swiss"]
[SourceTitle "playchess.com"]
[Source "ChessBase"]
[SourceQuality "1"]
[TimeControl "5400+30"]

1. d4 {[%emt 0:00:20]} Nf6 {[%emt 0:00:14]} 2. Bf4 {[%emt 0:00:03]} g6 {[%emt 0:00:20]} 3. Nf3 {[%emt 0:00:10]} Bg7 {[%emt 0:00:26]} 4. h3 {[%emt 0:00:11]} O-O {[%emt 0:00:50]} 5. e3 {[%emt 0:00:03]} d6 {[%emt 0:00:22]} 6. Be2 {[%emt 0:00:18]} Nc6 {[%emt 0:02:14]} 7. O-O {[%emt 0:01:24]} Ne4 {[%emt 0:01:30]} 8. Nbd2 {[%emt 0:01:38]} Nxd2 {[%emt 0:01:49]} 9. Nxd2 {[%emt 0:00:24]} e5 {[%emt 0:00:33]} 10. dxe5 {[%emt 0:00:13]} dxe5 {[%emt 0:00:26]} 11. Bh2 {[%emt 0:00:16]} Qe7 {[%emt 0:01:30]} 12. c4 {[%emt 0:00:46]} Be6 {[%emt 0:01:54]} 13. a3 {[%emt 0:00:57]} a5 {[%emt 0:01:07]} 14. Qc2 {[%emt 0:00:13]} f5 {[%emt 0:03:40]} 15. Bf3 {[%emt 0:03:18]} a4 {[%emt 0:04:23]} 16. Bxc6 {[%emt 0:02:01]} bxc6 {[%emt 0:00:02]} 17. e4 {[%emt 0:00:18]} f4 {[%emt 0:02:01]} 18. Rfb1 {[%emt 0:01:00]} Qc5 {[%emt 0:03:56]} 19. b4 {[%emt 0:01:11]} axb3 {[%emt 0:00:26]} 20. Rxb3 {[%emt 0:00:13]} Rfd8 {[%emt 0:07:51]} 21. Rd3 {[%emt 0:06:01]} Rdb8 {[%emt 0:03:38]} 22. Kf1 {[%emt 0:05:38]} f3 {[%emt 0:12:35]} 23. Rxf3 {[%emt 0:02:44]} Rf8 {[%emt 0:01:57]} 24. Rxf8+ {[%emt 0:00:52]} Rxf8 {[%emt 0:01:28]} 25. f3 {[%emt 0:00:05]} Qd4 {[%emt 0:05:22]} 26. Rd1 {[%emt 0:01:21]} Qe3 {[%emt 0:08:59]} 27. a4 {[%emt 0:01:29]} Rd8 {[%emt 0:00:45]} 28. Bg1 {[%emt 0:00:41]} Qa3 {[%emt 0:03:09]} 29. c5 {[%emt 0:03:31]} Bh6 {[%emt 0:02:01]} 30. Ke2 {[%emt 0:01:05]} Qb4 {[%emt 0:10:43]} 31. Be3 {[%emt 0:01:19]} Bxe3 {[%emt 0:01:38]} 32. Kxe3 {[%emt 0:00:02]} Ra8 {[%emt 0:02:12]} 33. Rb1 {[%emt 0:01:20]} Qd4+ {[%emt 0:00:37]} 34. Ke2 {[%emt 0:00:15]} Rxa4 {[%emt 0:00:41]} 35. Rb8+ {[%emt 0:00:56]} Kg7 {[%emt 0:00:31]} 36. Rb7 {[%emt 0:00:24]} Ra2 {[%emt 0:02:26]} 37. Rxc7+ {[%emt 0:01:02]} Kh6 {[%emt 0:00:27]} 38. Qc1 {[%emt 0:00:35]} Bc4+ {[%emt 0:00:22]} 0-1